[Event "*** Titled Tuesday 3|2 Blitz (Early)"]
[Site "Chess.com"]
[Date "2016.11.01"]
[Round "2"]
[White "dretch"]
[Black "GianmarcoVaR"]
[Result "1/2-1/2"]
[WhiteElo "2650"]
[BlackElo "2410"]
[TimeControl "180+2"]
[EndTime "11:24:55 PDT"]
[Termination "Game drawn by stalemate"]

1. d4 {[%clk 0:03:01.9]} 1... Nf6 {[%clk 0:02:50.8]} 2. c4 {[%clk 0:03:03.1]}
2... e6 {[%clk 0:02:51.9]} 3. Nc3 {[%clk 0:03:04.8]} 3... Bb4 {[%clk 0:02:53.1]}
4. Qc2 {[%clk 0:03:06.5]} 4... d5 {[%clk 0:02:50.7]} 5. cxd5 {[%clk 0:03:07.3]}
5... exd5 {[%clk 0:02:51]} 6. Bg5 {[%clk 0:03:07.1]} 6... h6 {[%clk 0:02:52.1]}
7. Bxf6 {[%clk 0:03:08.3]} 7... Qxf6 {[%clk 0:02:52.5]} 8. a3 {[%clk 0:03:09.9]}
8... Bxc3+ {[%clk 0:02:53.2]} 9. Qxc3 {[%clk 0:03:11.8]} 9... O-O {[%clk
0:02:54.5]} 10. e3 {[%clk 0:03:13.5]} 10... Bf5 {[%clk 0:02:55.5]} 11. Ne2
{[%clk 0:03:14.2]} 11... Rc8 {[%clk 0:02:55.1]} 12. Nf4 {[%clk 0:03:11.4]} 12...
c6 {[%clk 0:02:34.8]} 13. Be2 {[%clk 0:03:10.2]} 13... Nd7 {[%clk 0:02:31.6]}
14. O-O {[%clk 0:03:10.2]} 14... Qe7 {[%clk 0:02:24.2]} 15. b4 {[%clk 0:03:08]}
15... Nf6 {[%clk 0:02:24.6]} 16. Rac1 {[%clk 0:03:01.7]} 16... Ne4 {[%clk
0:02:24.9]} 17. Qb2 {[%clk 0:03:02]} 17... a6 {[%clk 0:02:21]} 18. a4 {[%clk
0:03:00.1]} 18... b5 {[%clk 0:02:07.4]} 19. Nd3 {[%clk 0:02:47.8]} 19... f6
{[%clk 0:01:41.1]} 20. Nc5 {[%clk 0:02:36.9]} 20... Nd6 {[%clk 0:01:34.8]} 21.
Qc3 {[%clk 0:02:35.3]} 21... g5 {[%clk 0:01:21.3]} 22. Rfe1 {[%clk 0:02:27.2]}
22... Bg6 {[%clk 0:01:21]} 23. Qb3 {[%clk 0:02:15.1]} 23... Kg7 {[%clk
0:01:18.6]} 24. Bg4 {[%clk 0:02:12.6]} 24... Bf5 {[%clk 0:01:17.3]} 25. Bxf5
{[%clk 0:02:06.1]} 25... Nxf5 {[%clk 0:01:18.1]} 26. e4 {[%clk 0:02:07.8]} 26...
dxe4 {[%clk 0:00:53.2]} 27. Rxe4 {[%clk 0:02:08.4]} 27... Qf7 {[%clk 0:00:54.2]}
28. Qh3 {[%clk 0:01:56]} 28... Nd6 {[%clk 0:00:47.2]} 29. Re6 {[%clk 0:01:55.6]}
29... Rd8 {[%clk 0:00:38.7]} 30. Rce1 {[%clk 0:01:50.6]} 30... Ra7 {[%clk
0:00:39.5]} 31. a5 {[%clk 0:01:38]} 31... Re8 {[%clk 0:00:25]} 32. R1e3 {[%clk
0:01:17.1]} 32... Rxe6 {[%clk 0:00:21.3]} 33. Nxe6+ {[%clk 0:01:14.1]} 33... Kh7
{[%clk 0:00:21.9]} 34. f4 {[%clk 0:00:52.2]} 34... gxf4 {[%clk 0:00:13.2]} 35.
Nxf4 {[%clk 0:00:50.6]} 35... Re7 {[%clk 0:00:14.9]} 36. Ne6 {[%clk 0:00:43.2]}
36... Qe8 {[%clk 0:00:08.8]} 37. Re2 {[%clk 0:00:18.9]} 37... f5 {[%clk
0:00:09.2]} 38. Qb3 {[%clk 0:00:09.5]} 38... Nc4 {[%clk 0:00:08.9]} 39. Qf3
{[%clk 0:00:10.3]} 39... Nd6 {[%clk 0:00:06.9]} 40. d5 {[%clk 0:00:11.8]} 40...
Qf7 {[%clk 0:00:04]} 41. Nd8 {[%clk 0:00:10.8]} 41... Qe8 {[%clk 0:00:04.7]} 42.
Ne6 {[%clk 0:00:12.2]} 42... Qf7 {[%clk 0:00:05.8]} 43. h3 {[%clk 0:00:13.2]}
43... Qf6 {[%clk 0:00:05.6]} 44. Kh2 {[%clk 0:00:13]} 44... Ne4 {[%clk
0:00:05.6]} 45. Nf4 {[%clk 0:00:14.2]} 45... cxd5 {[%clk 0:00:05.2]} 46. Nxd5
{[%clk 0:00:16.1]} 46... Qe5+ {[%clk 0:00:06.4]} 47. Nf4 {[%clk 0:00:17.8]}
47... Rg7 {[%clk 0:00:07.6]} 48. Qe3 {[%clk 0:00:15.5]} 48... Re7 {[%clk
0:00:06.8]} 49. g3 {[%clk 0:00:15.4]} 49... Rc7 {[%clk 0:00:07.1]} 50. Qf3
{[%clk 0:00:14.3]} 50... Rc3 {[%clk 0:00:04.8]} 51. Re3 {[%clk 0:00:14.9]} 51...
Rxe3 {[%clk 0:00:04.6]} 52. Qxe3 {[%clk 0:00:16.1]} 52... Qb2+ {[%clk 0:00:06]}
53. Kg1 {[%clk 0:00:15.7]} 53... Qxb4 {[%clk 0:00:06.2]} 54. Qa7+ {[%clk
0:00:16.7]} 54... Kg8 {[%clk 0:00:05.3]} 55. Qb8+ {[%clk 0:00:17.9]} 55... Qf8
{[%clk 0:00:05.5]} 56. Qe5 {[%clk 0:00:16.4]} 56... Qc5+ {[%clk 0:00:06.2]} 57.
Qxc5 {[%clk 0:00:17.3]} 57... Nxc5 {[%clk 0:00:08.1]} 58. Nd5 {[%clk 0:00:18.6]}
58... Nb3 {[%clk 0:00:08]} 59. Nb4 {[%clk 0:00:19]} 59... Nxa5 {[%clk
0:00:08.9]} 60. Nxa6 {[%clk 0:00:20.6]} 60... Nc6 {[%clk 0:00:08.6]} 61. Nc5
{[%clk 0:00:19.9]} 61... Nd4 {[%clk 0:00:08.1]} 62. Nd3 {[%clk 0:00:19.1]} 62...
Kf7 {[%clk 0:00:08.7]} 63. Kf2 {[%clk 0:00:20.3]} 63... Ke6 {[%clk 0:00:09.9]}
64. Nf4+ {[%clk 0:00:19.4]} 64... Ke5 {[%clk 0:00:10.2]} 65. Ke3 {[%clk
0:00:21.3]} 65... Ne6 {[%clk 0:00:07.3]} 66. Ne2 {[%clk 0:00:18.9]} 66... Kd5
{[%clk 0:00:07.8]} 67. Kd3 {[%clk 0:00:19]} 67... b4 {[%clk 0:00:07.9]} 68. h4
{[%clk 0:00:15.5]} 68... h5 {[%clk 0:00:06.1]} 69. Kc2 {[%clk 0:00:15.5]} 69...
Kc4 {[%clk 0:00:07]} 70. Kb2 {[%clk 0:00:15.6]} 70... Kd3 {[%clk 0:00:07.6]} 71.
Ng1 {[%clk 0:00:15.2]} 71... Ke3 {[%clk 0:00:08.1]} 72. Nh3 {[%clk 0:00:15]}
72... Kf3 {[%clk 0:00:08.6]} 73. Ng5+ {[%clk 0:00:16.4]} 73... Kxg3 {[%clk
0:00:07.4]} 74. Nxe6 {[%clk 0:00:17.4]} 74... f4 {[%clk 0:00:08]} 75. Kb3 {[%clk
0:00:11]} 75... f3 {[%clk 0:00:08.4]} 76. Ng5 {[%clk 0:00:12.5]} 76... Kf4
{[%clk 0:00:05.4]} 77. Kxb4 {[%clk 0:00:12.9]} 77... f2 {[%clk 0:00:06.9]} 78.
Nh3+ {[%clk 0:00:14.3]} 78... Kg3 {[%clk 0:00:08.5]} 79. Nxf2 {[%clk 0:00:15.4]}
79... Kxf2 {[%clk 0:00:10.3]} 80. Kc3 {[%clk 0:00:16.9]} 80... Kg3 {[%clk
0:00:12.2]} 81. Kd2 {[%clk 0:00:18.4]} 81... Kxh4 {[%clk 0:00:14.1]} 82. Ke2
{[%clk 0:00:19.7]} 82... Kg3 {[%clk 0:00:15.2]} 83. Kf1 {[%clk 0:00:21.2]} 83...
Kh2 {[%clk 0:00:17.1]} 84. Kf2 {[%clk 0:00:22.8]} 84... Kh3 {[%clk 0:00:18.4]}
85. Kg1 {[%clk 0:00:24]} 85... h4 {[%clk 0:00:19.5]} 86. Kh1 {[%clk 0:00:20.1]}
86... Kg3 {[%clk 0:00:21.4]} 87. Kg1 {[%clk 0:00:21]} 87... h3 {[%clk
0:00:23.3]} 88. Kh1 {[%clk 0:00:22.4]} 88... h2 {[%clk 0:00:25.2]} 1/2-1/2

[Event "*** Titled Tuesday 3|2 Blitz (Early)"]
[Site "Chess.com"]
[Date "2016.11.01"]
[Round "3"]
[White "Zaven_ChessMood"]
[Black "fireheart92"]
[Result "1/2-1/2"]
[WhiteElo "2573"]
[BlackElo "2505"]
[TimeControl "180+2"]
[EndTime "11:26:25 PDT"]
[Termination "Game drawn by repetition"]

1. e4 {[%clk 0:03:02]} 1... c5 {[%clk 0:03:01]} 2. Nf3 {[%clk 0:02:58.1]} 2...
d6 {[%clk 0:03:02.6]} 3. d4 {[%clk 0:02:55.1]} 3... cxd4 {[%clk 0:03:03.9]} 4.
Nxd4 {[%clk 0:02:56.1]} 4... Nf6 {[%clk 0:03:05.1]} 5. Nc3 {[%clk 0:02:57.2]}
5... a6 {[%clk 0:03:06.9]} 6. Be3 {[%clk 0:02:58.1]} 6... Ng4 {[%clk 0:03:08.3]}
7. Bc1 {[%clk 0:02:58.2]} 7... Nf6 {[%clk 0:03:09]} 8. Be3 {[%clk 0:02:59.2]}
8... Ng4 {[%clk 0:03:09.9]} 9. Bc1 {[%clk 0:02:59.4]} 9... Nf6 {[%clk
0:03:10.9]} 10. Be3 {[%clk 0:02:58.5]} 10... Ng4 {[%clk 0:03:11.9]} 11. Bc1
{[%clk 0:02:58.9]} 11... Nf6 {[%clk 0:03:12.6]} 1/2-1/2

[Event "*** Titled Tuesday 3|2 Blitz (Early)"]
[Site "Chess.com"]
[Date "2016.11.01"]
[Round "3"]
[White "popov_m"]
[Black "SCIM"]
[Result "1-0"]
[WhiteElo "2245"]
[BlackElo "2278"]
[TimeControl "180+2"]
[EndTime "11:28:40 PDT"]
[Termination "popov_m won by resignation"]

1. c4 {[%clk 0:03:01.9]} 1... g6 {[%clk 0:02:58.1]} 2. g3 {[%clk 0:03:01]} 2...
c5 {[%clk 0:02:55.4]} 3. Nc3 {[%clk 0:03:00.7]} 3... Nc6 {[%clk 0:02:56.3]} 4.
Bg2 {[%clk 0:03:01.6]} 4... Bg7 {[%clk 0:02:56.7]} 5. Nf3 {[%clk 0:03:02.6]}
5... e6 {[%clk 0:02:56.4]} 6. O-O {[%clk 0:02:58.3]} 6... Nge7 {[%clk
0:02:56.5]} 7. d4 {[%clk 0:02:59.9]} 7... cxd4 {[%clk 0:02:54]} 8. Nb5 {[%clk
0:03:01.3]} 8... O-O {[%clk 0:02:50.1]} 9. Nbxd4 {[%clk 0:03:02.1]} 9... d5
{[%clk 0:02:50.2]} 10. cxd5 {[%clk 0:03:00.4]} 10... exd5 {[%clk 0:02:48.3]} 11.
Be3 {[%clk 0:02:59.5]} 11... Bg4 {[%clk 0:02:43.4]} 12. h3 {[%clk 0:02:50.8]}
12... Bxf3 {[%clk 0:02:34.3]} 13. Nxf3 {[%clk 0:02:51.8]} 13... d4 {[%clk
0:02:34.9]} 14. Bd2 {[%clk 0:02:49.5]} 14... Re8 {[%clk 0:02:31.6]} 15. Ne1
{[%clk 0:02:46.9]} 15... Rc8 {[%clk 0:02:22.8]} 16. Nd3 {[%clk 0:02:48.1]} 16...
h5 {[%clk 0:02:22.5]} 17. Rc1 {[%clk 0:02:38.9]} 17... Qd6 {[%clk 0:02:08.2]}
18. Qb3 {[%clk 0:02:33.5]} 18... Na5 {[%clk 0:02:07.4]} 19. Bxa5 {[%clk
0:02:31.7]} 1-0

[Event "*** Titled Tuesday 3|2 Blitz (Early)"]
[Site "Chess.com"]
[Date "2016.11.01"]
[Round "3"]
[White "josiwales"]
[Black "MateusViageiro"]
[Result "1/2-1/2"]
[WhiteElo "2172"]
[BlackElo "2298"]
[TimeControl "180+2"]
[EndTime "11:30:06 PDT"]
[Termination "Game drawn by agreement"]

1. e4 {[%clk 0:03:02]} 1... c5 {[%clk 0:02:59.9]} 2. Nc3 {[%clk 0:03:02]} 2...
d6 {[%clk 0:02:58.6]} 3. g3 {[%clk 0:03:03.4]} 3... Nf6 {[%clk 0:02:58.6]} 4.
Bg2 {[%clk 0:03:05]} 4... g6 {[%clk 0:03:00.1]} 5. d3 {[%clk 0:03:06.6]} 5...
Bg7 {[%clk 0:03:01.5]} 6. Nge2 {[%clk 0:03:08.2]} 6... O-O {[%clk 0:03:02.9]} 7.
O-O {[%clk 0:03:09.3]} 7... Nc6 {[%clk 0:03:04.6]} 8. f4 {[%clk 0:03:10.7]} 8...
a6 {[%clk 0:03:05.9]} 9. h3 {[%clk 0:03:12.3]} 9... Qc7 {[%clk 0:03:07]} 10. g4
{[%clk 0:03:13.8]} 10... b5 {[%clk 0:03:08]} 11. Ng3 {[%clk 0:03:15.2]} 11...
Bb7 {[%clk 0:03:08.5]} 12. g5 {[%clk 0:03:16.4]} 12... Nd7 {[%clk 0:03:07.3]}
13. Nd5 {[%clk 0:03:17.7]} 13... Qd8 {[%clk 0:03:08.2]} 14. f5 {[%clk
0:03:19.2]} 14... e6 {[%clk 0:03:06.6]} 15. f6 {[%clk 0:02:57.5]} 15... exd5
{[%clk 0:03:07]} 16. fxg7 {[%clk 0:02:58.6]} 16... Kxg7 {[%clk 0:03:05.5]} 17.
exd5 {[%clk 0:03:00.5]} 17... Nce5 {[%clk 0:03:02.1]} 18. Bf4 {[%clk 0:02:58.3]}
18... Nb6 {[%clk 0:02:59.4]} 19. Bxe5+ {[%clk 0:02:40]} 19... dxe5 {[%clk
0:02:59.8]} 20. Ne4 {[%clk 0:02:34]} 20... Bxd5 {[%clk 0:02:56.4]} 21. Qg4
{[%clk 0:02:29.9]} 21... Bxe4 {[%clk 0:02:56.7]} 22. Bxe4 {[%clk 0:02:30.6]}
22... Rb8 {[%clk 0:02:52.1]} 23. Qh4 {[%clk 0:02:30.7]} 23... Qd4+ {[%clk
0:02:42.2]} 24. Kh1 {[%clk 0:02:30.7]} 24... Qxb2 {[%clk 0:02:43.2]} 25. Rae1
{[%clk 0:02:21.3]} 25... Qd4 {[%clk 0:02:34]} 26. Qh6+ {[%clk 0:02:21.1]} 26...
Kg8 {[%clk 0:02:34.4]} 27. Rf6 {[%clk 0:02:22.8]} 27... Nd5 {[%clk 0:02:30.6]}
28. Bxg6 {[%clk 0:02:16.8]} 28... fxg6 {[%clk 0:02:18]} 29. Rxg6+ {[%clk
0:02:17.7]} 29... hxg6 {[%clk 0:02:14.9]} 30. Qxg6+ {[%clk 0:02:19.6]} 30... Kh8
{[%clk 0:02:15.5]} 31. Qh6+ {[%clk 0:02:19.2]} 31... Kg8 {[%clk 0:02:16.5]} 32.
Qg6+ {[%clk 0:02:18]} 32... Kh8 {[%clk 0:02:17.5]} 33. Qh6+ {[%clk 0:01:59.1]}
1/2-1/2

[Event "*** Titled Tuesday 3|2 Blitz (Early)"]
[Site "Chess.com"]
[Date "2016.11.01"]
[Round "3"]
[White "petrpalachev"]
[Black "Kawhi_Leonard2"]
[Result "1-0"]
[WhiteElo "2409"]
[BlackElo "2057"]
[TimeControl "180+2"]
[EndTime "11:30:19 PDT"]
[Termination "petrpalachev won by checkmate"]

1. e4 {[%clk 0:03:02]} 1... c5 {[%clk 0:03:00.2]} 2. Nf3 {[%clk 0:03:02.9]} 2...
d6 {[%clk 0:03:01.3]} 3. d4 {[%clk 0:03:04.2]} 3... cxd4 {[%clk 0:03:02.9]} 4.
Nxd4 {[%clk 0:03:06.1]} 4... Nf6 {[%clk 0:03:04.4]} 5. Nc3 {[%clk 0:03:05.8]}
5... g6 {[%clk 0:03:06]} 6. Be3 {[%clk 0:03:05.3]} 6... Bg7 {[%clk 0:03:07.4]}
7. f3 {[%clk 0:03:06.7]} 7... Nc6 {[%clk 0:03:08.6]} 8. Qd2 {[%clk 0:03:07]}
8... O-O {[%clk 0:03:10.2]} 9. Bc4 {[%clk 0:03:08.6]} 9... Bd7 {[%clk
0:03:10.3]} 10. h4 {[%clk 0:03:09.2]} 10... h5 {[%clk 0:03:07.5]} 11. O-O-O
{[%clk 0:03:08.4]} 11... Ne5 {[%clk 0:03:07.1]} 12. Bb3 {[%clk 0:03:09.1]} 12...
Rc8 {[%clk 0:03:08.6]} 13. Bg5 {[%clk 0:03:09.6]} 13... Rc5 {[%clk 0:03:09.7]}
14. g4 {[%clk 0:03:07.1]} 14... hxg4 {[%clk 0:03:09.2]} 15. h5 {[%clk
0:03:07.7]} 15... Nxh5 {[%clk 0:03:10.3]} 16. Nd5 {[%clk 0:02:59]} 16... Re8
{[%clk 0:02:51.7]} 17. Rxh5 {[%clk 0:02:54.3]} 17... gxh5 {[%clk 0:02:51.7]} 18.
Qh2 {[%clk 0:02:55.2]} 18... Rxd5 {[%clk 0:02:47.6]} 19. Bxd5 {[%clk 0:02:51.7]}
19... Qb6 {[%clk 0:02:48.6]} 20. Qxh5 {[%clk 0:02:44.4]} 20... e6 {[%clk
0:02:38.9]} 21. Bb3 {[%clk 0:02:37.2]} 21... Nxf3 {[%clk 0:02:32.7]} 22. Nxf3
{[%clk 0:02:35.4]} 22... gxf3 {[%clk 0:02:33.8]} 23. Qxf3 {[%clk 0:02:34.9]}
23... a5 {[%clk 0:02:22.1]} 24. Bf6 {[%clk 0:02:22.7]} 24... Bh6+ {[%clk
0:01:29.5]} 25. Kb1 {[%clk 0:02:21.5]} 25... a4 {[%clk 0:01:23.6]} 26. Qg2+
{[%clk 0:02:16.7]} 26... Kh7 {[%clk 0:01:21]} 27. Rh1 {[%clk 0:02:18.1]} 27...
Qe3 {[%clk 0:01:14.3]} 28. Qg7# {[%clk 0:02:17.6]} 1-0

[Event "*** Titled Tuesday 3|2 Blitz (Early)"]
[Site "Chess.com"]
[Date "2016.11.01"]
[Round "3"]
[White "ulises2013"]
[Black "HovmoellerHest"]
[Result "1-0"]
[WhiteElo "2276"]
[BlackElo "2271"]
[TimeControl "180+2"]
[EndTime "11:30:26 PDT"]
[Termination "ulises2013 won by resignation"]

1. e4 {[%clk 0:03:01.9]} 1... c5 {[%clk 0:02:59.7]} 2. Nf3 {[%clk 0:03:02.6]}
2... d6 {[%clk 0:03:01.1]} 3. d4 {[%clk 0:03:03.7]} 3... cxd4 {[%clk 0:03:03]}
4. Nxd4 {[%clk 0:03:05.6]} 4... Nf6 {[%clk 0:03:04.7]} 5. Nc3 {[%clk 0:03:06.7]}
5... a6 {[%clk 0:03:05.9]} 6. f4 {[%clk 0:03:07.3]} 6... e5 {[%clk 0:03:05.8]}
7. Nb3 {[%clk 0:03:07.9]} 7... Be7 {[%clk 0:02:59.3]} 8. Qf3 {[%clk 0:03:07.3]}
8... b5 {[%clk 0:02:50.4]} 9. a4 {[%clk 0:02:54.3]} 9... b4 {[%clk 0:02:50.6]}
10. Nd5 {[%clk 0:02:55]} 10... Nxd5 {[%clk 0:02:50.7]} 11. exd5 {[%clk
0:02:56.9]} 11... Bf6 {[%clk 0:02:40.7]} 12. Bd3 {[%clk 0:02:52.7]} 12... Nd7
{[%clk 0:02:32.1]} 13. O-O {[%clk 0:02:51.4]} 13... Bb7 {[%clk 0:02:26.8]} 14.
a5 {[%clk 0:02:39.6]} 14... Qc7 {[%clk 0:02:21.1]} 15. Be3 {[%clk 0:02:37.2]}
15... exf4 {[%clk 0:02:10.5]} 16. Bxf4 {[%clk 0:02:36.3]} 16... Ne5 {[%clk
0:02:08.3]} 17. Qg3 {[%clk 0:02:31.7]} 17... O-O-O {[%clk 0:01:59]} 18. Be3
{[%clk 0:02:23.1]} 18... Nd7 {[%clk 0:01:47.1]} 19. Qg4 {[%clk 0:02:10.3]} 19...
Rde8 {[%clk 0:01:23.7]} 20. Bb6 {[%clk 0:02:08.2]} 20... Qb8 {[%clk 0:01:17.5]}
21. Bf5 {[%clk 0:02:08]} 21... Re7 {[%clk 0:01:17.7]} 22. Qc4+ {[%clk
0:02:06.7]} 1-0

[Event "*** Titled Tuesday 3|2 Blitz (Early)"]
[Site "Chess.com"]
[Date "2016.11.01"]
[Round "3"]
[White "Morshynska"]
[Black "Drags95"]
[Result "0-1"]
[WhiteElo "2150"]
[BlackElo "2431"]
[TimeControl "180+2"]
[EndTime "11:31:59 PDT"]
[Termination "Drags95 won by resignation"]

1. Nf3 {[%clk 0:03:01.9]} 1... Nf6 {[%clk 0:02:59.5]} 2. g3 {[%clk 0:03:01.3]}
2... g6 {[%clk 0:03:00.7]} 3. Bg2 {[%clk 0:02:59.9]} 3... Bg7 {[%clk 0:03:02.3]}
4. O-O {[%clk 0:03:01.8]} 4... O-O {[%clk 0:03:03.7]} 5. d4 {[%clk 0:03:03.7]}
5... d6 {[%clk 0:03:04.5]} 6. b3 {[%clk 0:03:04.9]} 6... e5 {[%clk 0:03:01]} 7.
dxe5 {[%clk 0:03:06.8]} 7... dxe5 {[%clk 0:03:02.1]} 8. Bb2 {[%clk 0:02:39.5]}
8... e4 {[%clk 0:03:02.7]} 9. Qxd8 {[%clk 0:02:29.8]} 9... Rxd8 {[%clk
0:03:04.6]} 10. Ng5 {[%clk 0:02:08.6]} 10... Bf5 {[%clk 0:03:02.7]} 11. Nc3
{[%clk 0:01:59.1]} 11... Nc6 {[%clk 0:02:47.7]} 12. Rad1 {[%clk 0:01:46]} 12...
h6 {[%clk 0:02:44.5]} 13. Nh3 {[%clk 0:01:40.9]} 13... Nd4 {[%clk 0:02:45.5]}
14. Rc1 {[%clk 0:01:28.7]} 14... Nd5 {[%clk 0:02:38.2]} 15. Rfe1 {[%clk
0:01:05.7]} 15... Nxe2+ {[%clk 0:02:16.1]} 16. Rxe2 {[%clk 0:00:59.6]} 16...
Bxc3 {[%clk 0:02:16.9]} 17. Ba3 {[%clk 0:00:54.6]} 17... Re8 {[%clk 0:01:57.7]}
18. Nf4 {[%clk 0:00:42.8]} 18... Nxf4 {[%clk 0:01:55.9]} 19. gxf4 {[%clk
0:00:44.7]} 19... Rad8 {[%clk 0:01:57.3]} 20. Bc5 {[%clk 0:00:33.4]} 20... b6
{[%clk 0:01:51.2]} 21. Be3 {[%clk 0:00:33.7]} 21... c5 {[%clk 0:01:52.2]} 22. h3
{[%clk 0:00:33.6]} 22... h5 {[%clk 0:01:44.6]} 23. Kh2 {[%clk 0:00:34.5]} 23...
Rd6 {[%clk 0:01:45.2]} 24. Rg1 {[%clk 0:00:22]} 24... Bc8 {[%clk 0:01:38.8]} 25.
Bc1 {[%clk 0:00:20.3]} 25... f5 {[%clk 0:01:39.9]} 26. Be3 {[%clk 0:00:20.7]}
26... Ba6 {[%clk 0:01:40.5]} 0-1

[Event "*** Titled Tuesday 3|2 Blitz (Early)"]
[Site "Chess.com"]
[Date "2016.11.01"]
[Round "3"]
[White "Bishops83"]
[Black "Mbneu"]
[Result "1-0"]
[WhiteElo "2258"]
[BlackElo "2125"]
[TimeControl "180+2"]
[EndTime "11:32:11 PDT"]
[Termination "Bishops83 won by resignation"]

1. e4 {[%clk 0:03:01.9]} 1... d6 {[%clk 0:03:00.6]} 2. d4 {[%clk 0:03:02]} 2...
Nf6 {[%clk 0:03:01.1]} 3. Nc3 {[%clk 0:03:00.8]} 3... g6 {[%clk 0:03:02.1]} 4.
f4 {[%clk 0:03:00.2]} 4... Bg7 {[%clk 0:03:02.6]} 5. Nf3 {[%clk 0:03:00.1]} 5...
c5 {[%clk 0:02:59.7]} 6. dxc5 {[%clk 0:02:58.7]} 6... Qa5 {[%clk 0:02:52.1]} 7.
Qd4 {[%clk 0:03:00.1]} 7... Nc6 {[%clk 0:02:32.6]} 8. Bb5 {[%clk 0:02:52.1]}
8... O-O {[%clk 0:02:27.2]} 9. Qa4 {[%clk 0:02:43.5]} 9... Qxa4 {[%clk
0:02:04.9]} 10. Bxa4 {[%clk 0:02:40.9]} 10... dxc5 {[%clk 0:01:51.2]} 11. e5
{[%clk 0:02:41.8]} 11... Ng4 {[%clk 0:01:37.5]} 12. Nd5 {[%clk 0:02:12]} 12...
Be6 {[%clk 0:00:48.8]} 13. Nc7 {[%clk 0:02:12.1]} 13... Rac8 {[%clk 0:00:47.5]}
14. Nxe6 {[%clk 0:02:12.8]} 14... fxe6 {[%clk 0:00:48.4]} 15. Bb3 {[%clk
0:02:03.1]} 15... Nd8 {[%clk 0:00:43.6]} 16. Bc4 {[%clk 0:01:53.7]} 16... Nh6
{[%clk 0:00:38.4]} 17. Be3 {[%clk 0:01:49.5]} 17... Nhf7 {[%clk 0:00:37.2]} 18.
O-O-O {[%clk 0:01:43.7]} 18... g5 {[%clk 0:00:33.9]} 19. g3 {[%clk 0:01:41.8]}
19... gxf4 {[%clk 0:00:33.2]} 20. gxf4 {[%clk 0:01:43.6]} 20... Kh8 {[%clk
0:00:33]} 21. Rd7 {[%clk 0:01:39.7]} 21... a6 {[%clk 0:00:26.8]} 22. a4 {[%clk
0:01:37.6]} 22... Nh6 {[%clk 0:00:25.6]} 23. Rxe7 {[%clk 0:01:34.6]} 23... Nf5
{[%clk 0:00:25.6]} 24. Rxg7 {[%clk 0:01:35.3]} 24... Kxg7 {[%clk 0:00:24.1]} 25.
Bd2 {[%clk 0:01:34.6]} 25... Nd4 {[%clk 0:00:21.2]} 26. Ng5 {[%clk 0:01:33.7]}
26... h6 {[%clk 0:00:19.9]} 27. Ne4 {[%clk 0:01:34.7]} 27... b6 {[%clk
0:00:18.1]} 28. Rg1+ {[%clk 0:01:30.6]} 28... Kf7 {[%clk 0:00:17.5]} 29. Nd6+
{[%clk 0:01:30.4]} 1-0

[Event "*** Titled Tuesday 3|2 Blitz (Early)"]
[Site "Chess.com"]
[Date "2016.11.01"]
[Round "3"]
[White "CroatianPower"]
[Black "Matibar"]
[Result "0-1"]
[WhiteElo "2467"]
[BlackElo "2577"]
[TimeControl "180+2"]
[EndTime "11:33:04 PDT"]
[Termination "Matibar won by resignation"]

1. d4 {[%clk 0:03:01.9]} 1... f5 {[%clk 0:03:00.3]} 2. Nc3 {[%clk 0:03:02.6]}
2... d5 {[%clk 0:03:00.2]} 3. e4 {[%clk 0:03:00.4]} 3... dxe4 {[%clk 0:02:54.4]}
4. Bf4 {[%clk 0:03:00.5]} 4... Nf6 {[%clk 0:02:48.7]} 5. f3 {[%clk 0:03:01.4]}
5... a6 {[%clk 0:02:42.5]} 6. Qd2 {[%clk 0:02:41.6]} 6... b5 {[%clk 0:02:30.4]}
7. O-O-O {[%clk 0:02:36]} 7... e6 {[%clk 0:02:12.2]} 8. fxe4 {[%clk 0:01:53.8]}
8... fxe4 {[%clk 0:02:10.8]} 9. g4 {[%clk 0:01:47.2]} 9... Bb4 {[%clk
0:02:10.9]} 10. Nge2 {[%clk 0:01:27.4]} 10... Bb7 {[%clk 0:02:05]} 11. Rg1
{[%clk 0:01:22.1]} 11... O-O {[%clk 0:02:02]} 12. a3 {[%clk 0:01:15.7]} 12...
Bd6 {[%clk 0:01:41.2]} 13. Bg2 {[%clk 0:01:06.9]} 13... b4 {[%clk 0:01:40]} 14.
axb4 {[%clk 0:01:07.4]} 14... Bxb4 {[%clk 0:01:41.4]} 15. Qe3 {[%clk 0:01:01.5]}
15... Nd5 {[%clk 0:01:38.9]} 16. Nxd5 {[%clk 0:00:55.9]} 16... exd5 {[%clk
0:01:36.1]} 17. Qb3 {[%clk 0:00:54.6]} 17... a5 {[%clk 0:01:24.1]} 18. c3 {[%clk
0:00:55.3]} 18... Ba6 {[%clk 0:01:25.3]} 19. Bxe4 {[%clk 0:00:18.9]} 19... Bc4
{[%clk 0:01:18.8]} 20. Bxh7+ {[%clk 0:00:15.9]} 20... Kxh7 {[%clk 0:01:19.7]}
21. Qc2+ {[%clk 0:00:17.5]} 21... Kg8 {[%clk 0:01:21.3]} 22. cxb4 {[%clk
0:00:18.9]} 22... Bxe2 {[%clk 0:01:22.7]} 23. Qxe2 {[%clk 0:00:19.6]} 23... Rxf4
{[%clk 0:01:23]} 24. Qe6+ {[%clk 0:00:20.7]} 24... Rf7 {[%clk 0:01:23.6]} 25.
Rgf1 {[%clk 0:00:14.7]} 25... Qd7 {[%clk 0:01:23.5]} 26. Qxf7+ {[%clk
0:00:07.6]} 26... Qxf7 {[%clk 0:01:24.2]} 27. Rxf7 {[%clk 0:00:09.5]} 27... Kxf7
{[%clk 0:01:26.1]} 28. bxa5 {[%clk 0:00:11.3]} 28... Nc6 {[%clk 0:01:26.1]} 29.
Rf1+ {[%clk 0:00:13.2]} 29... Ke6 {[%clk 0:01:26.7]} 30. Re1+ {[%clk 0:00:14.5]}
30... Kd6 {[%clk 0:01:28]} 31. Rf1 {[%clk 0:00:14.9]} 31... Nxd4 {[%clk
0:01:28.9]} 32. Rf7 {[%clk 0:00:15.8]} 32... Ne6 {[%clk 0:01:30]} 33. b4 {[%clk
0:00:14.4]} 33... Rb8 {[%clk 0:01:30.1]} 34. g5 {[%clk 0:00:12.1]} 34... Rxb4
{[%clk 0:01:30.8]} 35. g6 {[%clk 0:00:13.5]} 35... Ra4 {[%clk 0:01:28.1]} 36. h4
{[%clk 0:00:14.8]} 36... Rxa5 {[%clk 0:01:29.4]} 37. h5 {[%clk 0:00:15.8]} 37...
Ra1+ {[%clk 0:01:30.6]} 38. Kd2 {[%clk 0:00:16.6]} 38... Rh1 {[%clk 0:01:32.5]}
39. Rf5 {[%clk 0:00:17.4]} 39... c5 {[%clk 0:01:32.9]} 0-1